[Event "Late-Titled-Tuesday-Blitz-March-26-2024"]
[Site "Chess.com"]
[Date "2024.03.26"]
[Round "4"]
[White "CaspiIsrael"]
[Black "Koalaskakistis"]
[Result "0-1"]
[WhiteElo "2666"]
[BlackElo "2473"]
[TimeControl "180+1"]
[EndTime "14:42:48 PDT"]
[Termination "Koalaskakistis won by checkmate"]

1. d4 {[%clk 0:03:00.9]} 1... f5 {[%clk 0:03:00]} 2. c4 {[%clk 0:02:56]} 2...
Nf6 {[%clk 0:02:59.7]} 3. Nc3 {[%clk 0:02:56.6]} 3... e6 {[%clk 0:02:59.9]} 4.
g3 {[%clk 0:02:54.5]} 4... Bb4 {[%clk 0:02:59.4]} 5. Bg2 {[%clk 0:02:54.6]} 5...
O-O {[%clk 0:02:59.6]} 6. Nh3 {[%clk 0:02:53.3]} 6... d6 {[%clk 0:02:58.6]} 7.
O-O {[%clk 0:02:53.2]} 7... Bxc3 {[%clk 0:02:50.1]} 8. bxc3 {[%clk 0:02:53.1]}
8... e5 {[%clk 0:02:50.8]} 9. c5 {[%clk 0:02:50.9]} 9... Nc6 {[%clk 0:02:30.2]}
10. cxd6 {[%clk 0:02:35]} 10... cxd6 {[%clk 0:02:31.1]} 11. dxe5 {[%clk
0:02:28.6]} 11... dxe5 {[%clk 0:02:30.8]} 12. Qb3+ {[%clk 0:02:25.3]} 12... Kh8
{[%clk 0:02:30]} 13. Ng5 {[%clk 0:02:22.3]} 13... Qc7 {[%clk 0:02:04]} 14. Ba3
{[%clk 0:02:20.1]} 14... Na5 {[%clk 0:02:04.4]} 15. Ne6 {[%clk 0:02:01.5]} 15...
Bxe6 {[%clk 0:01:50]} 16. Qxe6 {[%clk 0:01:59.2]} 16... Rfe8 {[%clk 0:01:40.9]}
17. Qxf5 {[%clk 0:01:58]} 17... Qxc3 {[%clk 0:01:39.4]} 18. Bd6 {[%clk
0:01:54.1]} 18... Nc4 {[%clk 0:01:36.8]} 19. Bc5 {[%clk 0:01:41.6]} 19... e4
{[%clk 0:01:31.4]} 20. Rac1 {[%clk 0:01:38.2]} 20... Qe5 {[%clk 0:01:31.8]} 21.
Qxe5 {[%clk 0:01:30.8]} 21... Nxe5 {[%clk 0:01:32.7]} 22. Rfd1 {[%clk
0:01:26.6]} 22... Nc6 {[%clk 0:01:29.7]} 23. Rd6 {[%clk 0:01:05.2]} 23... Re5
{[%clk 0:01:26.3]} 24. h3 {[%clk 0:00:57.6]} 24... Kg8 {[%clk 0:01:20]} 25. Be3
{[%clk 0:00:57]} 25... Kf7 {[%clk 0:01:13.6]} 26. g4 {[%clk 0:00:56.6]} 26... h6
{[%clk 0:01:11.1]} 27. Kh2 {[%clk 0:00:51.5]} 27... Ra5 {[%clk 0:01:10.8]} 28.
Rd2 {[%clk 0:00:50.8]} 28... Re8 {[%clk 0:01:06.8]} 29. Kg3 {[%clk 0:00:50.3]}
29... Re7 {[%clk 0:01:05.8]} 30. h4 {[%clk 0:00:49.4]} 30... Ra3 {[%clk
0:01:02.8]} 31. g5 {[%clk 0:00:44.4]} 31... hxg5 {[%clk 0:01:01.2]} 32. hxg5
{[%clk 0:00:45.3]} 32... Nd7 {[%clk 0:01:00.7]} 33. Kf4 {[%clk 0:00:41.3]} 33...
Ra4 {[%clk 0:00:59.5]} 34. Rcd1 {[%clk 0:00:33.4]} 34... Nde5 {[%clk 0:00:56.1]}
35. Rc2 {[%clk 0:00:26.8]} 35... Ng6+ {[%clk 0:00:53.9]} 36. Kg4 {[%clk
0:00:25.7]} 36... Nce5+ {[%clk 0:00:52.4]} 37. Kg3 {[%clk 0:00:25.8]} 37... Nc4
{[%clk 0:00:49.3]} 38. Bc5 {[%clk 0:00:24.4]} 38... Re5 {[%clk 0:00:42.8]} 39.
Rd7+ {[%clk 0:00:19.4]} 39... Kg8 {[%clk 0:00:43.3]} 40. Rd8+ {[%clk 0:00:16.3]}
40... Kf7 {[%clk 0:00:42]} 41. Rd7+ {[%clk 0:00:16.5]} 41... Ke8 {[%clk
0:00:40.8]} 42. Rc7 {[%clk 0:00:16.5]} 42... Rxg5+ {[%clk 0:00:40.3]} 43. Kh2
{[%clk 0:00:16]} 43... Nf4 {[%clk 0:00:33.1]} 44. Bxe4 {[%clk 0:00:15.3]} 44...
Ra6 {[%clk 0:00:33.6]} 45. Rc8+ {[%clk 0:00:10.7]} 45... Kd7 {[%clk 0:00:33.8]}
46. Rh8 {[%clk 0:00:10.3]} 46... Rxc5 {[%clk 0:00:34.5]} 47. e3 {[%clk 0:00:09]}
47... Ne6 {[%clk 0:00:34.1]} 48. Bxb7 {[%clk 0:00:08.9]} 48... Rb6 {[%clk
0:00:33.5]} 49. Bc8+ {[%clk 0:00:08.7]} 49... Ke7 {[%clk 0:00:26.8]} 50. Bxe6
{[%clk 0:00:08.2]} 50... Rxe6 {[%clk 0:00:26.6]} 51. Kg3 {[%clk 0:00:08.4]}
51... Rg6+ {[%clk 0:00:19.5]} 52. Kh2 {[%clk 0:00:08.6]} 52... a5 {[%clk
0:00:17.6]} 53. Rh4 {[%clk 0:00:08.9]} 53... Rgc6 {[%clk 0:00:17]} 54. a4 {[%clk
0:00:08.5]} 54... Nb6 {[%clk 0:00:15.9]} 55. Re4+ {[%clk 0:00:08.4]} 55... Kd6
{[%clk 0:00:16]} 56. Rd2+ {[%clk 0:00:08.5]} 56... Rd5 {[%clk 0:00:15.2]} 57.
Rb2 {[%clk 0:00:08.4]} 57... Nd7 {[%clk 0:00:14.3]} 58. Rg4 {[%clk 0:00:08.6]}
58... g5 {[%clk 0:00:13.4]} 59. Kg3 {[%clk 0:00:06.3]} 59... Nf6 {[%clk
0:00:13.7]} 60. Rd4 {[%clk 0:00:04.2]} 60... Rxd4 {[%clk 0:00:14.1]} 61. exd4
{[%clk 0:00:05.1]} 61... Rc3+ {[%clk 0:00:14.4]} 62. f3 {[%clk 0:00:05.1]} 62...
Rc4 {[%clk 0:00:15.3]} 63. Rb6+ {[%clk 0:00:04.8]} 63... Ke7 {[%clk 0:00:16]}
64. Rb5 {[%clk 0:00:05]} 64... Rxa4 {[%clk 0:00:15.4]} 65. Rxg5 {[%clk
0:00:05.4]} 65... Ra3 {[%clk 0:00:15.2]} 66. Re5+ {[%clk 0:00:05.6]} 66... Kd6
{[%clk 0:00:15.5]} 67. Kf4 {[%clk 0:00:05.9]} 67... a4 {[%clk 0:00:15]} 68. Ra5
{[%clk 0:00:05.7]} 68... Ra1 {[%clk 0:00:14.3]} 69. Ra6+ {[%clk 0:00:05.7]}
69... Ke7 {[%clk 0:00:14.8]} 70. Ke5 {[%clk 0:00:06]} 70... Nd7+ {[%clk
0:00:14.6]} 71. Kf5 {[%clk 0:00:06.2]} 71... a3 {[%clk 0:00:14.6]} 72. f4 {[%clk
0:00:06.5]} 72... a2 {[%clk 0:00:15]} 73. d5 {[%clk 0:00:07.1]} 73... Nb6 {[%clk
0:00:14.1]} 74. d6+ {[%clk 0:00:04.9]} 74... Kd7 {[%clk 0:00:13.8]} 75. Rxb6
{[%clk 0:00:05]} 75... Rb1 {[%clk 0:00:13]} 76. Ra6 {[%clk 0:00:03.3]} 76...
a1=Q {[%clk 0:00:13.5]} 77. Rxa1 {[%clk 0:00:04]} 77... Rxa1 {[%clk 0:00:14.4]}
78. Ke5 {[%clk 0:00:04.5]} 78... Ra5+ {[%clk 0:00:14.1]} 79. Kf6 {[%clk
0:00:04.7]} 79... Kxd6 {[%clk 0:00:14.7]} 80. f5 {[%clk 0:00:05.6]} 80... Kd7
{[%clk 0:00:14.4]} 81. Kg6 {[%clk 0:00:05.8]} 81... Ke8 {[%clk 0:00:14.7]} 82.
f6 {[%clk 0:00:06.3]} 82... Kf8 {[%clk 0:00:15.1]} 83. Kh6 {[%clk 0:00:05.9]}
83... Ra6 {[%clk 0:00:15.2]} 84. Kg6 {[%clk 0:00:06.8]} 84... Rb6 {[%clk
0:00:16]} 85. Kg5 {[%clk 0:00:07]} 85... Kf7 {[%clk 0:00:16.9]} 86. Kf5 {[%clk
0:00:07.4]} 86... Rb5+ {[%clk 0:00:17.5]} 87. Kg4 {[%clk 0:00:07.3]} 87... Kxf6
{[%clk 0:00:18.4]} 88. Kh4 {[%clk 0:00:07.7]} 88... Rg5 {[%clk 0:00:18.4]} 89.
Kh3 {[%clk 0:00:07.5]} 89... Kf5 {[%clk 0:00:19.3]} 90. Kh2 {[%clk 0:00:08.4]}
90... Kf4 {[%clk 0:00:19.7]} 91. Kh1 {[%clk 0:00:09.3]} 91... Kf3 {[%clk
0:00:20]} 92. Kh2 {[%clk 0:00:10.2]} 92... Rg6 {[%clk 0:00:20.5]} 93. Kh1 {[%clk
0:00:11.1]} 93... Kf2 {[%clk 0:00:21.1]} 94. Kh2 {[%clk 0:00:12]} 94... Rh6#
{[%clk 0:00:22]} 0-1

[Event "Late-Titled-Tuesday-Blitz-March-26-2024"]
[Site "Chess.com"]
[Date "2024.03.26"]
[Round "4"]
[White "IriBu"]
[Black "The_Machine04"]
[Result "1/2-1/2"]
[WhiteElo "2572"]
[BlackElo "2786"]
[TimeControl "180+1"]
[EndTime "14:42:50 PDT"]
[Termination "Game drawn by repetition"]

1. e4 {[%clk 0:03:00.9]} 1... d6 {[%clk 0:02:59.8]} 2. d4 {[%clk 0:03:00.6]}
2... Nf6 {[%clk 0:02:59.9]} 3. Nc3 {[%clk 0:03:01]} 3... e5 {[%clk 0:03:00.4]}
4. Nf3 {[%clk 0:03:00.7]} 4... Nbd7 {[%clk 0:03:00.6]} 5. Bc4 {[%clk 0:03:00.3]}
5... Be7 {[%clk 0:03:00.9]} 6. O-O {[%clk 0:03:00]} 6... c6 {[%clk 0:03:01.4]}
7. Re1 {[%clk 0:03:00.7]} 7... h6 {[%clk 0:03:01.8]} 8. a4 {[%clk 0:03:00.4]}
8... Qc7 {[%clk 0:03:02.3]} 9. a5 {[%clk 0:02:59.5]} 9... Nf8 {[%clk 0:03:02.4]}
10. dxe5 {[%clk 0:02:51.9]} 10... dxe5 {[%clk 0:03:03.3]} 11. b3 {[%clk
0:02:52.5]} 11... Ng6 {[%clk 0:03:02.4]} 12. Bb2 {[%clk 0:02:52]} 12... O-O
{[%clk 0:03:02.2]} 13. h3 {[%clk 0:02:47.8]} 13... Rb8 {[%clk 0:03:00]} 14. Qc1
{[%clk 0:02:44.6]} 14... b5 {[%clk 0:02:59.4]} 15. axb6 {[%clk 0:02:43.9]} 15...
axb6 {[%clk 0:03:00.3]} 16. Nd1 {[%clk 0:02:40.3]} 16... b5 {[%clk 0:03:00]} 17.
Bf1 {[%clk 0:02:40.8]} 17... Be6 {[%clk 0:02:57.5]} 18. Nd2 {[%clk 0:02:38]}
18... Rfd8 {[%clk 0:02:57.1]} 19. Ne3 {[%clk 0:02:38.3]} 19... Bc5 {[%clk
0:02:55.6]} 20. Kh1 {[%clk 0:02:27.4]} 20... Ra8 {[%clk 0:02:53.2]} 21. Rxa8
{[%clk 0:02:26.1]} 21... Rxa8 {[%clk 0:02:54.1]} 22. Kg1 {[%clk 0:02:21.2]}
22... Qa7 {[%clk 0:02:53.9]} 23. Bd3 {[%clk 0:02:18]} 23... Nf4 {[%clk
0:02:50.7]} 24. Bf1 {[%clk 0:02:17.7]} 24... Nd7 {[%clk 0:02:48.1]} 25. Kh2
{[%clk 0:02:16.2]} 25... Qb6 {[%clk 0:02:38.9]} 26. g3 {[%clk 0:02:16.5]} 26...
Ng6 {[%clk 0:02:38.8]} 27. Bg2 {[%clk 0:02:08.1]} 27... Ndf8 {[%clk 0:02:27.8]}
28. Nf3 {[%clk 0:02:05.7]} 28... f6 {[%clk 0:02:26.4]} 29. Bf1 {[%clk
0:01:51.9]} 29... Rd8 {[%clk 0:02:24.2]} 30. c3 {[%clk 0:01:51.1]} 30... Bxb3
{[%clk 0:02:22]} 31. c4 {[%clk 0:01:50.1]} 31... bxc4 {[%clk 0:02:17.7]} 32.
Bxc4+ {[%clk 0:01:44.4]} 32... Bxc4 {[%clk 0:02:17.4]} 33. Qxc4+ {[%clk
0:01:40.6]} 33... Kh7 {[%clk 0:02:17.9]} 34. Bc3 {[%clk 0:01:30.5]} 34... Qb5
{[%clk 0:02:17.9]} 35. Qf7 {[%clk 0:01:28.3]} 35... Rd7 {[%clk 0:02:18]} 36. Qa2
{[%clk 0:01:20.4]} 36... Rd3 {[%clk 0:02:15.2]} 37. Rb1 {[%clk 0:01:12.4]} 37...
Rxc3 {[%clk 0:01:33.5]} 38. Rxb5 {[%clk 0:01:11.7]} 38... cxb5 {[%clk
0:01:34.4]} 39. Qd2 {[%clk 0:00:45.8]} 39... b4 {[%clk 0:01:32.3]} 40. Kg2
{[%clk 0:00:46.2]} 40... Bxe3 {[%clk 0:01:26.7]} 41. fxe3 {[%clk 0:00:46.1]}
41... Ne6 {[%clk 0:01:26.8]} 42. Qb2 {[%clk 0:00:29.4]} 42... Rxe3 {[%clk
0:01:03.4]} 43. Qxb4 {[%clk 0:00:29.6]} 43... Ng5 {[%clk 0:00:37.9]} 44. Nxg5+
{[%clk 0:00:27.1]} 44... hxg5 {[%clk 0:00:38.4]} 45. Kf2 {[%clk 0:00:27.4]}
45... Rd3 {[%clk 0:00:37.3]} 46. Qc4 {[%clk 0:00:23.8]} 46... Rd4 {[%clk
0:00:35.9]} 47. Qc6 {[%clk 0:00:24.4]} 47... Nf8 {[%clk 0:00:31.8]} 48. Kf3
{[%clk 0:00:24.8]} 48... Kg8 {[%clk 0:00:31.6]} 49. Qb7 {[%clk 0:00:20.4]} 49...
Rd7 {[%clk 0:00:29.9]} 50. Qb3+ {[%clk 0:00:20]} 50... Kh7 {[%clk 0:00:28.6]}
51. Qb5 {[%clk 0:00:19.5]} 51... Rd4 {[%clk 0:00:25.1]} 52. Qc6 {[%clk
0:00:19.8]} 52... Kg8 {[%clk 0:00:23]} 53. Qb7 {[%clk 0:00:20]} 53... Nd7 {[%clk
0:00:22.5]} 54. Qc8+ {[%clk 0:00:19.8]} 54... Kf7 {[%clk 0:00:22.7]} 55. Qb7
{[%clk 0:00:20.2]} 55... Kg6 {[%clk 0:00:21.8]} 56. Qc6 {[%clk 0:00:19.6]} 56...
Kf7 {[%clk 0:00:20.3]} 57. Qb7 {[%clk 0:00:19.7]} 57... Ke7 {[%clk 0:00:19.3]}
58. Qc6 {[%clk 0:00:18.6]} 58... g6 {[%clk 0:00:18.6]} 59. g4 {[%clk 0:00:16.4]}
59... Nf8 {[%clk 0:00:17.5]} 60. Qc7+ {[%clk 0:00:15.2]} 60... Rd7 {[%clk
0:00:18.1]} 61. Qc5+ {[%clk 0:00:15.3]} 61... Kf7 {[%clk 0:00:18.6]} 62. Qc4+
{[%clk 0:00:15.8]} 62... Kg7 {[%clk 0:00:18.8]} 63. Qc6 {[%clk 0:00:16.3]} 63...
Re7 {[%clk 0:00:18.6]} 64. Qd6 {[%clk 0:00:15.6]} 64... Kf7 {[%clk 0:00:18.8]}
65. Qd5+ {[%clk 0:00:16.1]} 65... Ne6 {[%clk 0:00:19.1]} 66. Qc4 {[%clk
0:00:16]} 66... Rc7 {[%clk 0:00:19.1]} 67. Qd5 {[%clk 0:00:16]} 67... Ke7 {[%clk
0:00:19.2]} 68. Qa2 {[%clk 0:00:14.3]} 68... Rc3+ {[%clk 0:00:18.9]} 69. Kf2
{[%clk 0:00:12.8]} 69... Rc7 {[%clk 0:00:19.8]} 70. Qa3+ {[%clk 0:00:12.6]}
70... Kf7 {[%clk 0:00:20.3]} 71. Qa2 {[%clk 0:00:13.2]} 71... Rd7 {[%clk
0:00:19.1]} 72. Qb3 {[%clk 0:00:13.1]} 72... Re7 {[%clk 0:00:18]} 73. Qa2 {[%clk
0:00:13.3]} 73... Kg7 {[%clk 0:00:18.5]} 74. Qd5 {[%clk 0:00:12.4]} 74... Nf4
{[%clk 0:00:18.6]} 75. Qb3 {[%clk 0:00:12.9]} 75... Rd7 {[%clk 0:00:18.9]} 76.
Qb5 {[%clk 0:00:10.7]} 76... Rf7 {[%clk 0:00:13.4]} 77. Kg3 {[%clk 0:00:10.4]}
77... Rc7 {[%clk 0:00:12.6]} 78. Qb6 {[%clk 0:00:10.2]} 78... Rc3+ {[%clk
0:00:12.1]} 79. Kf2 {[%clk 0:00:10.6]} 79... Nxh3+ {[%clk 0:00:12]} 80. Kf1
{[%clk 0:00:11.1]} 80... Nf4 {[%clk 0:00:11.6]} 81. Qb7+ {[%clk 0:00:10.8]}
81... Kf8 {[%clk 0:00:11.9]} 82. Qb8+ {[%clk 0:00:11.1]} 82... Kf7 {[%clk
0:00:11.4]} 83. Qb7+ {[%clk 0:00:10.8]} 83... Kg8 {[%clk 0:00:11]} 84. Qb8+
{[%clk 0:00:09.3]} 84... Kh7 {[%clk 0:00:10.9]} 85. Qd6 {[%clk 0:00:09.9]} 85...
Rg3 {[%clk 0:00:09.9]} 86. Qe7+ {[%clk 0:00:10.1]} 86... Kh6 {[%clk 0:00:10]}
87. Qf8+ {[%clk 0:00:10.6]} 87... Kh7 {[%clk 0:00:10.6]} 88. Qf7+ {[%clk
0:00:11]} 88... Kh6 {[%clk 0:00:11]} 89. Qf8+ {[%clk 0:00:11.5]} 89... Kh7
{[%clk 0:00:11.7]} 90. Qf7+ {[%clk 0:00:12]} 90... Kh8 {[%clk 0:00:12.1]} 91.
Qf8+ {[%clk 0:00:12.4]} 91... Kh7 {[%clk 0:00:12.6]} 1/2-1/2

[Event "Late-Titled-Tuesday-Blitz-March-26-2024"]
[Site "Chess.com"]
[Date "2024.03.26"]
[Round "4"]
[White "Doublekk14"]
[Black "Hirna2005"]
[Result "1/2-1/2"]
[WhiteElo "2400"]
[BlackElo "2295"]
[TimeControl "180+1"]
[EndTime "14:43:34 PDT"]
[Termination "Game drawn by 50-move rule"]

1. c4 {[%clk 0:03:00.9]} 1... g6 {[%clk 0:03:00.2]} 2. Nc3 {[%clk 0:03:00.2]}
2... Bg7 {[%clk 0:03:00.8]} 3. e3 {[%clk 0:02:56.8]} 3... d6 {[%clk 0:03:01.2]}
4. Nf3 {[%clk 0:02:56.2]} 4... c5 {[%clk 0:03:00.5]} 5. d4 {[%clk 0:02:54.5]}
5... cxd4 {[%clk 0:03:00.3]} 6. exd4 {[%clk 0:02:52.3]} 6... Bg4 {[%clk
0:03:00.3]} 7. Be2 {[%clk 0:02:51.2]} 7... Nc6 {[%clk 0:03:00]} 8. Be3 {[%clk
0:02:47.7]} 8... Nf6 {[%clk 0:02:57]} 9. O-O {[%clk 0:02:40.2]} 9... O-O {[%clk
0:02:56.1]} 10. h3 {[%clk 0:02:39.4]} 10... Bf5 {[%clk 0:02:53.3]} 11. g4 {[%clk
0:02:36.7]} 11... Bd7 {[%clk 0:02:49.8]} 12. Qd2 {[%clk 0:02:33.4]} 12... Qc8
{[%clk 0:02:42]} 13. Nh2 {[%clk 0:02:27.1]} 13... h5 {[%clk 0:02:21]} 14. f3
{[%clk 0:02:24.8]} 14... e5 {[%clk 0:02:14]} 15. d5 {[%clk 0:02:24]} 15... Nd4
{[%clk 0:02:09.8]} 16. Bd3 {[%clk 0:02:23.4]} 16... a6 {[%clk 0:01:55.8]} 17.
Ne2 {[%clk 0:02:12.8]} 17... Nxe2+ {[%clk 0:01:50.6]} 18. Qxe2 {[%clk
0:02:10.7]} 18... b5 {[%clk 0:01:49.7]} 19. b3 {[%clk 0:02:08.7]} 19... bxc4
{[%clk 0:01:38.8]} 20. bxc4 {[%clk 0:02:08.5]} 20... e4 {[%clk 0:01:33.9]} 21.
fxe4 {[%clk 0:01:23.5]} 21... hxg4 {[%clk 0:01:33.1]} 22. hxg4 {[%clk
0:01:21.9]} 22... Nxg4 {[%clk 0:01:30.1]} 23. Nxg4 {[%clk 0:01:21.8]} 23... Bxg4
{[%clk 0:01:30.2]} 24. Qh2 {[%clk 0:01:19.7]} 24... Bh3 {[%clk 0:01:25.1]} 25.
Rf3 {[%clk 0:01:03.2]} 25... Qg4+ {[%clk 0:01:09.7]} 26. Rg3 {[%clk 0:01:01.2]}
26... Be5 {[%clk 0:01:09.9]} 27. Rxg4 {[%clk 0:00:32.8]} 27... Bxh2+ {[%clk
0:01:09.2]} 28. Kxh2 {[%clk 0:00:33.1]} 28... Bxg4 {[%clk 0:01:09.8]} 29. Bg5
{[%clk 0:00:29.1]} 29... f6 {[%clk 0:01:06.9]} 30. Bf4 {[%clk 0:00:29.1]} 30...
Rad8 {[%clk 0:01:03.6]} 31. Rg1 {[%clk 0:00:28.9]} 31... Bh5 {[%clk 0:01:00.1]}
32. Rb1 {[%clk 0:00:23.5]} 32... Rfe8 {[%clk 0:00:34.5]} 33. Rb6 {[%clk
0:00:16.5]} 33... Bf3 {[%clk 0:00:34.3]} 34. Bxd6 {[%clk 0:00:15.3]} 34... Bxe4
{[%clk 0:00:33.2]} 35. Bxe4 {[%clk 0:00:13]} 35... Rxe4 {[%clk 0:00:33.3]} 36.
Bc7 {[%clk 0:00:10.7]} 36... Rde8 {[%clk 0:00:27.4]} 37. Rxf6 {[%clk 0:00:09.4]}
37... Rxc4 {[%clk 0:00:25.8]} 38. d6 {[%clk 0:00:09.3]} 38... Re2+ {[%clk
0:00:25.2]} 39. Kg3 {[%clk 0:00:08.9]} 39... Rd2 {[%clk 0:00:21.6]} 40. Rxg6+
{[%clk 0:00:08.3]} 40... Kf7 {[%clk 0:00:21.5]} 41. Rg5 {[%clk 0:00:07.9]} 41...
Rd3+ {[%clk 0:00:21.1]} 42. Kh2 {[%clk 0:00:06.2]} 42... Rc2+ {[%clk 0:00:21.2]}
43. Rg2 {[%clk 0:00:06.5]} 43... Rxg2+ {[%clk 0:00:19.8]} 44. Kxg2 {[%clk
0:00:06.7]} 44... Ke6 {[%clk 0:00:19.8]} 45. a4 {[%clk 0:00:05.7]} 45... a5
{[%clk 0:00:15.6]} 46. Bxa5 {[%clk 0:00:05]} 46... Kxd6 {[%clk 0:00:15.5]} 47.
Be1 {[%clk 0:00:04.6]} 47... Rd1 {[%clk 0:00:14.8]} 48. Bf2 {[%clk 0:00:04.3]}
48... Ra1 {[%clk 0:00:13.8]} 49. Bg3+ {[%clk 0:00:04.8]} 49... Kd5 {[%clk
0:00:13.6]} 50. Kf3 {[%clk 0:00:05.7]} 50... Rxa4 {[%clk 0:00:13.4]} 51. Kg2
{[%clk 0:00:05.9]} 51... Ra3 {[%clk 0:00:13.2]} 52. Kf2 {[%clk 0:00:05.9]} 52...
Rd3 {[%clk 0:00:13.7]} 53. Bf4 {[%clk 0:00:05.9]} 53... Ke4 {[%clk 0:00:14]} 54.
Bc7 {[%clk 0:00:06.1]} 54... Rd2+ {[%clk 0:00:14.1]} 55. Kg3 {[%clk 0:00:06.2]}
55... Rc2 {[%clk 0:00:13.3]} 56. Bb8 {[%clk 0:00:06.1]} 56... Rc3+ {[%clk
0:00:13]} 57. Kg4 {[%clk 0:00:04.6]} 57... Rc1 {[%clk 0:00:12.8]} 58. Kg5 {[%clk
0:00:04.9]} 58... Rf1 {[%clk 0:00:10.8]} 59. Kg6 {[%clk 0:00:04.3]} 59... Kd5
{[%clk 0:00:10.5]} 60. Kg5 {[%clk 0:00:03.8]} 60... Ke6 {[%clk 0:00:10.2]} 61.
Kg4 {[%clk 0:00:04.1]} 61... Rf7 {[%clk 0:00:09.2]} 62. Kg5 {[%clk 0:00:04.1]}
62... Rb7 {[%clk 0:00:08.5]} 63. Bf4 {[%clk 0:00:03.6]} 63... Rb5+ {[%clk
0:00:07.7]} 64. Kg4 {[%clk 0:00:03.9]} 64... Rb4 {[%clk 0:00:07.5]} 65. Kg3
{[%clk 0:00:03.8]} 65... Kf5 {[%clk 0:00:07.4]} 66. Bc7 {[%clk 0:00:04.1]} 66...
Rb3+ {[%clk 0:00:07.6]} 67. Kf2 {[%clk 0:00:04.5]} 67... Ke4 {[%clk 0:00:07.5]}
68. Kg2 {[%clk 0:00:04.8]} 68... Rf3 {[%clk 0:00:07.1]} 69. Bb8 {[%clk
0:00:04.5]} 69... Ke3 {[%clk 0:00:07.1]} 70. Ba7+ {[%clk 0:00:03.9]} 70... Ke2
{[%clk 0:00:07.5]} 71. Bb8 {[%clk 0:00:04.2]} 71... Rf8 {[%clk 0:00:05.2]} 72.
Bd6 {[%clk 0:00:04]} 72... Rg8+ {[%clk 0:00:05.1]} 73. Kh3 {[%clk 0:00:04.3]}
73... Kf3 {[%clk 0:00:04.8]} 74. Kh4 {[%clk 0:00:04.6]} 74... Rg7 {[%clk
0:00:03.5]} 75. Kh5 {[%clk 0:00:04.5]} 75... Rg2 {[%clk 0:00:03.5]} 76. Kh4
{[%clk 0:00:04.4]} 76... Rg4+ {[%clk 0:00:03.5]} 77. Kh5 {[%clk 0:00:04.7]}
77... Rd4 {[%clk 0:00:03.7]} 78. Bc7 {[%clk 0:00:04.9]} 78... Rd7 {[%clk
0:00:03.7]} 79. Bb8 {[%clk 0:00:04.3]} 79... Ke4 {[%clk 0:00:03.5]} 80. Kg4
{[%clk 0:00:03.7]} 80... Rg7+ {[%clk 0:00:03.7]} 81. Kh5 {[%clk 0:00:03.8]}
81... Kf5 {[%clk 0:00:04]} 82. Kh6 {[%clk 0:00:04.1]} 82... Rg6+ {[%clk
0:00:04]} 83. Kh7 {[%clk 0:00:03.5]} 83... Rg4 {[%clk 0:00:03.9]} 84. Bc7 {[%clk
0:00:02.9]} 84... Kf6 {[%clk 0:00:03.9]} 85. Bd8+ {[%clk 0:00:02.7]} 85... Kf7
{[%clk 0:00:04.4]} 86. Kh6 {[%clk 0:00:03]} 86... Rd4 {[%clk 0:00:04.3]} 87. Bg5
{[%clk 0:00:02.9]} 87... Rd8 {[%clk 0:00:03.1]} 88. Kh5 {[%clk 0:00:02.9]} 88...
Rd5 {[%clk 0:00:02.8]} 89. Kg4 {[%clk 0:00:03.2]} 89... Kg6 {[%clk 0:00:03.2]}
90. Be3 {[%clk 0:00:03.5]} 90... Rd3 {[%clk 0:00:03.1]} 91. Kf3 {[%clk
0:00:03.7]} 91... Kf5 {[%clk 0:00:03]} 92. Ke2 {[%clk 0:00:04.2]} 92... Ke4
{[%clk 0:00:03.3]} 93. Bh6 {[%clk 0:00:03.5]} 93... Rh3 {[%clk 0:00:03]} 94. Bg5
{[%clk 0:00:03.4]} 94... Rh2+ {[%clk 0:00:03.2]} 95. Kd1 {[%clk 0:00:03.4]}
95... Kd3 {[%clk 0:00:03.3]} 96. Ke1 {[%clk 0:00:03.7]} 96... Re2+ {[%clk
0:00:02.8]} 97. Kf1 {[%clk 0:00:03.7]} 97... Ra2 {[%clk 0:00:02.6]} 98. Ke1
{[%clk 0:00:03.6]} 98... Ke4 {[%clk 0:00:02.7]} 99. Bh6 {[%clk 0:00:03]} 99...
Kf3 {[%clk 0:00:03]} 100. Kd1 {[%clk 0:00:03.2]} 100... Re2 {[%clk 0:00:03.7]}
1/2-1/2